bitfinex-derivatives/quotes_SOLF0:USTF0_20250730
["timestamp","ask_amount","ask_price","bid_price","bid_amount"]
[1753846563441,3.19,181.96,181.95,3.05]
[1753846564047,3.19,181.96,181.85,144.05396158]
[1753846564353,3.19,182.02,181.87,3.05]
[1753846564550,5.4963,181.97,181.89,3.05]
[1753846564750,8.6863,181.97,181.91,3.05]
[1753846564949,3.19,181.96,181.93,3.05]
[1753846565751,3.19,181.96,181.93,5.4974]
[1753846565958,3.19,181.96,181.94,3.05]
[1753846566647,3.19,181.96,181.95,3.05]
[1753846568357,8.6866,181.96,181.95,3.05]
[1753846569255,8.6866,181.96,181.91,5.498]
[1753846569559,5.4966,181.96,181.92,3.05]
[1753846569853,3.19,181.95,181.92,3.05]
[1753846570152,3.19,181.95,181.92,8.5477]
[1753846570355,3.19,181.95,181.93,3.05]
[1753846572146,3.19,181.96,181.93,5.4974]
[1753846572351,3.19,181.97,181.94,3.05]
[1753846572659,487.06,182.04,181.85,137.89134471]
[1753846572660,3.19,182.03,181.96,3.05]
[1753846573446,5.4958,181.99,181.96,3.05]
[1753846573650,8.6858,181.99,181.96,3.05]
[1753846576258,3.19,181.99,181.96,8.5464]
[1753846576458,3.19,181.99,181.97,3.05]
[1753846577354,5.4954,182.0,181.97,3.05]
[1753846577355,5.4954,182.0,181.97,8.5462]
[1753846577555,8.6854,182.0,181.98,3.05]
[1753846577849,5.4952,182.01,181.98,8.5459]
[1753846578052,3.19,182.0,181.99,3.05]
[1753846579259,8.6854,182.0,181.99,3.05]
[1753846579758,3.19,181.99,181.98,3.05]
[1753846580362,3.19,182.0,181.98,3.05]
[1753846582760,3.14,181.98,181.95,5.4968]
[1753846582955,3.14,181.97,181.95,5.4968]
[1753846583155,3.14,181.98,181.95,5.4968]
[1753846583460,3.14,181.98,181.96,3.1]
[1753846583859,5.4957,181.99,181.96,3.1]
[1753846584360,8.6357,181.99,181.96,3.1]
[1753846584558,3.14,181.98,181.87,3.1]
[1753846584759,3.14,181.98,181.85,137.89134471]
[1753846584760,3.14,181.98,181.89,3.1]
[1753846584956,3.14,181.98,181.9,3.45421633]
[1753846585156,3.14,181.98,181.89,3.1]
[1753846585157,3.14,181.98,181.92,3.1]
[1753846585762,5.4957,181.99,181.95,5.4968]
[1753846585965,8.6357,181.99,181.96,3.1]
[1753846587962,5.496,181.98,181.95,3.1]
[1753846588162,10.986,182.08,181.95,3.1]
[1753846588163,3.14,181.97,181.95,3.1]
[1753846588764,3.14,181.96,181.95,3.1]
[1753846589159,8.6366,181.96,181.95,3.1]
[1753846589862,3.14,181.96,181.95,3.1]
[1753846592059,3.14,181.98,181.95,8.5968]
[1753846592365,3.14,181.98,181.96,3.1]
[1753846592777,3.14,182.07,181.91,3.1]
[1753846593067,4.60454707,182.04,181.91,3.1]
[1753846593268,7.03330133,182.03,181.91,3.1]
[1753846593461,3.14,182.01,181.91,3.1]
[1753846593659,3.14,181.99,181.91,3.1]
[1753846593857,3.14,181.92,181.91,3.1]
[1753846595962,8.6378,181.92,181.91,3.1]
[1753846596563,3.14,181.92,181.91,3.1]
[1753846597163,8.6378,181.92,181.91,3.1]
[1753846597867,3.14,181.92,181.89,3.1]
[1753846598166,3.14,181.92,181.87,3.1]
[1753846598564,3.14,181.92,181.85,137.89134471]
[1753846598565,3.14,181.92,181.88,3.1]
[1753846600367,5.4991,181.88,181.85,137.89134471]
[1753846600570,5.4991,181.88,181.87,3.1]
[1753846600965,8.6391,181.88,181.87,3.1]
[1753846605465,3.14,181.86,181.84,3.1]
[1753846606167,8.6399,181.86,181.84,3.1]
[1753846606367,3.14,181.86,181.84,3.1]
[1753846606768,3.14,181.87,181.84,3.1]
[1753846607673,8.6392,181.88,181.84,3.1]
[1753846609669,8.6392,181.88,181.84,5.5001]
[1753846609872,8.6388,181.89,181.85,3.1]
[1753846610271,5.4988,181.89,181.85,3.1]
[1753846610471,5.4988,181.89,181.85,8.5998]
[1753846610677,5.4991,181.88,181.86,3.1]
[1753846612978,8.6591,181.88,181.86,3.1]
[1753846613276,5.4991,181.88,181.86,3.1]
[1753846614478,8.6591,181.88,181.86,3.1]
[1753846615075,8.6594,181.87,181.85,3.04]
[1753846615381,3.16,181.86,181.85,3.04]
[1753846616280,8.6596,181.86,181.85,3.04]
[1753846616483,3.16,181.97,181.85,3.04]
[1753846616677,3.16,181.95,181.85,3.04]
[1753846616875,5.4992,181.88,181.85,3.04]
[1753846617071,3.16,181.87,181.85,3.04]
[1753846618981,8.6594,181.87,181.85,3.04]
[1753846619180,3.16,181.86,181.84,3.04]
[1753846619377,3.16,181.97,181.84,3.04]
[1753846619571,5.4998,181.86,181.84,3.04]
[1753846619775,3.16,181.85,181.84,3.04]
[1753846620982,3.16,181.85,181.82,3.04]
[1753846621178,3.16,181.85,181.81,3.04]
[1753846621580,3.16,181.85,181.8,117.22]
[1753846621881,3.16,181.85,181.8,120.26]
[1753846622074,3.16,181.92,181.81,3.04]
[1753846622279,3.16,181.9,181.81,3.04]
[1753846622680,5.5008,181.82,181.81,3.04]
[1753846622880,3.16,181.82,181.8,117.22]
[1753846623084,3.16,181.82,181.8,120.26]
[1753846623282,3.16,181.83,181.8,117.22]
[1753846623680,3.16,181.83,181.81,3.04]
[1753846623879,3.16,181.92,181.81,3.04]
[1753846624181,3.16,181.9,181.81,3.04]
[1753846624981,5.5007,181.83,181.8,117.22]
[1753846625379,8.6607,181.83,181.8,117.22]
[1753846625579,8.6607,181.83,181.81,3.04]
[1753846627980,8.6607,181.83,181.8,117.22]
[1753846627981,8.6607,181.83,181.8,122.7214]
[1753846628284,3.16,181.83,181.8,122.7214]
[1753846628579,3.16,181.85,181.81,3.04]
[1753846628782,3.16,181.85,181.8,117.22]
[1753846628783,3.16,181.85,181.82,3.04]
[1753846629886,8.6601,181.85,181.82,3.04]
[1753846631682,5.5001,181.85,181.83,3.04]
[1753846631987,8.6601,181.85,181.83,3.04]
[1753846632186,8.6602,181.84,181.82,3.04]
[1753846632384,3.16,181.83,181.82,3.04]
[1753846633190,15.58811327,181.93,181.81,3.04]
[1753846633482,3.16,181.91,181.81,3.04]
[1753846633687,3.89155582,181.9,181.81,3.04]
[1753846633890,3.16,181.88,181.81,3.04]
[1753846634487,8.661,181.82,181.81,3.04]
[1753846635186,8.661,181.82,181.8,117.22]
[1753846635187,5.5011,181.81,181.8,117.22]
[1753846635388,3.16,181.81,181.8,120.26]
[1753846635991,3.16,181.8,181.79,3.04]
[1753846637293,5.5014,181.81,181.79,3.04]
[1753846637494,8.6614,181.81,181.79,3.04]
[1753846638092,3.16,181.8,181.79,3.04]
[1753846638288,5.5014,181.81,181.79,3.04]
[1753846640197,5.5014,181.8,181.79,3.04]
[1753846640795,8.6614,181.8,181.79,3.04]
[1753846642392,5.5019,181.79,181.78,3.01]
[1753846643090,8.5419,181.79,181.78,3.01]
[1753846644594,3.04,181.78,181.77,117.22]
[1753846644799,8.542,181.78,181.77,117.22]
[1753846645096,3.04,181.8,181.78,3.01]
[1753846645297,8.5417,181.8,181.78,3.01]
[1753846645501,5.5017,181.8,181.78,3.01]
[1753846645703,8.5417,181.8,181.79,3.01]
[1753846646202,8.5412,181.81,181.79,3.01]
[1753846646796,3.04,181.8,181.79,3.01]
[1753846648701,8.5414,181.8,181.79,3.01]
[1753846651903,3.04,181.8,181.79,3.01]
[1753846652099,3.04,181.87,181.79,3.01]
[1753846652306,3.04,181.85,181.79,3.01]
[1753846652604,5.5011,181.82,181.79,3.01]
[1753846652797,3.04,181.81,181.79,3.01]
[1753846653101,3.04,181.8,181.79,3.01]
[1753846653495,3.04,181.81,181.79,3.01]
[1753846654507,5.501,181.82,181.77,122.7222]
[1753846654705,3.04,181.86,181.79,3.01]
[1753846655206,8.5404,181.84,181.81,3.01]
[1753846655802,5.5005,181.83,181.81,3.01]
[1753846656304,5.5008,181.82,181.81,3.01]
[1753846656505,8.5408,181.82,181.81,3.01]
[1753846660211,3.04,181.8,181.79,3.01]
[1753846662009,8.5412,181.81,181.79,3.01]
[1753846662710,5.5009,181.82,181.8,3.01]
[1753846663014,8.5409,181.82,181.8,3.01]
[1753846663308,5.5009,181.82,181.8,3.01]
[1753846664013,8.5409,181.82,181.8,3.01]
[1753846664810,3.04,181.84,181.81,3.01]
[1753846666312,3.04,181.86,181.81,3.01]
[1753846666613,3.04,181.88,181.81,3.01]
[1753846666804,4.59301327,181.93,181.77,126.47360043]
[1753846666805,5.4989,181.89,181.78,9.25360043]
[1753846667010,8.5389,181.89,181.79,3.01]
[1753846667420,8.5389,181.89,181.85,5.4996]
[1753846667612,3.04,181.88,181.86,3.01]
[1753846668315,3.04,181.88,181.87,3.01]
[1753846668811,3.04,181.89,181.87,3.01]
[1753846669015,3.04,181.88,181.86,5.4995]
[1753846669612,3.04,181.88,181.87,3.01]
[1753846669815,3.04,181.88,181.87,8.5093]
[1753846670113,3.04,181.89,181.88,3.01]
[1753846670911,3.04,181.88,181.87,3.01]
[1753846671209,3.04,181.88,181.82,2.95]
[1753846671809,2.99,181.86,181.83,5.5003]
[1753846672014,2.99,181.86,181.84,2.95]
[1753846672415,5.4997,181.86,181.83,5.5003]
[1753846672613,2.99,181.85,181.84,2.95]
[1753846672913,5.4994,181.87,181.84,2.95]
[1753846673119,2.99,181.86,181.84,5.5002]
[1753846673320,2.99,181.86,181.85,2.95]
[1753846674621,2.99,181.86,181.85,8.4499]
[1753846674818,2.99,181.93,181.85,2.95]
[1753846675221,5.4986,181.9,181.86,5.4994]
[1753846675421,2.99,181.96,181.87,2.95]
[1753846675621,2.99,181.94,181.87,2.95]
[1753846675814,2.99,181.89,181.87,2.95]
[1753846676018,2.99,181.89,181.88,2.95]
[1753846676417,8.4887,181.89,181.88,2.95]
[1753846677121,2.99,181.88,181.86,2.95]
[1753846677320,2.99,181.88,181.87,2.95]
[1753846678924,2.99,181.88,181.85,2.95]
[1753846678925,2.99,181.87,181.85,2.95]
[1753846679220,5.499,181.88,181.84,5.5001]
[1753846679221,2.99,181.86,181.84,5.5001]
[1753846679620,2.99,181.86,181.85,2.95]
[1753846680018,2.99,181.88,181.86,2.95]
[1753846680213,2.99,181.91,181.82,2.95]
[1753846681429,2.99,181.88,181.86,2.95]
[1753846682325,2.99,181.88,181.87,2.95]
[1753846682524,2.99,181.89,181.87,2.95]
[1753846683126,2.99,181.89,181.88,2.95]
[1753846683925,4.59301327,181.98,181.89,5.4987]
[1753846684116,3.90385782,181.97,181.9,2.95]
[1753846684322,4.59301327,182.01,181.9,2.95]
[1753846684323,2.99,181.96,181.9,2.95]
[1753846684524,2.99,182.01,181.9,2.95]
[1753846684726,2.99,181.99,181.88,2.95]
[1753846684928,2.99,181.97,181.88,2.95]
[1753846685226,2.99,181.97,181.89,2.95]
[1753846685628,2.99,181.91,181.89,8.4486]
[1753846685827,2.99,181.91,181.9,2.95]
[1753846686625,121.73301327,182.02,181.9,2.95]
[1753846686826,2.99,182.0,181.9,2.95]
[1753846687029,3.90150961,181.99,181.9,2.95]
[1753846687226,5.4975,181.93,181.9,2.95]
[1753846687430,2.99,181.92,181.91,2.95]
[1753846688226,8.4879,181.92,181.91,2.95]
[1753846690129,2.99,181.92,181.91,2.95]
[1753846690631,8.4878,181.92,181.91,2.95]
[1753846692033,2.99,182.01,181.88,2.95]
[1753846692231,2.99,181.99,181.88,2.95]
[1753846692530,2.99,181.91,181.89,2.95]
[1753846693032,8.4881,181.91,181.89,2.95]
[1753846693534,2.99,181.9,181.88,2.95]
[1753846695030,5.4982,181.91,181.88,8.4489]
[1753846695230,2.99,182.01,181.89,2.95]
[1753846695434,2.99,181.99,181.89,2.95]
[1753846695638,2.99,181.99,181.83,12.20360043]
[1753846695836,5.4963,181.97,181.84,2.95]
[1753846696036,5.4963,181.97,181.85,2.95]
[1753846696226,2.99,181.99,181.95,2.95]
[1753846696432,2.99,181.97,181.96,2.95]
[1753846696835,5.4962,181.98,181.96,2.95]
[1753846697033,8.4862,181.98,181.96,2.95]
[1753846697239,2.99,181.98,181.96,2.95]
[1753846698137,8.486,181.98,181.96,2.95]
[1753846699040,2.99,181.97,181.84,378.87360043]
[1753846699241,2.99,181.97,181.85,117.08]
[1753846699435,5.4974,181.94,181.9,5.4982]
[1753846699632,2.99,181.93,181.9,5.4982]
[1753846699832,2.99,181.93,181.92,2.95]
[1753846704444,8.4875,181.93,181.92,2.95]
[1753846704647,2.94,182.03,181.87,3.23]
[1753846704846,5.4982,181.91,181.87,3.23]
[1753846705041,2.94,181.89,181.87,3.23]
[1753846705345,2.94,182.0,181.88,3.23]
[1753846705549,3.8988864,181.99,181.88,3.23]
[1753846705748,2.94,181.97,181.88,3.23]
[1753846706344,5.4982,181.91,181.88,3.23]
[1753846706544,5.4982,181.91,181.89,3.23]
[1753846707256,2.94,181.9,181.89,3.23]
[1753846707751,2.94,181.89,181.88,3.23]
[1753846708052,2.94,181.89,181.87,3.23]
[1753846708555,2.94,181.88,181.86,3.23]
[1753846710457,2.94,181.87,181.86,3.23]
[1753846711053,8.4393,181.87,181.86,3.23]
[1753846711554,8.4393,181.87,181.84,120.29]
[1753846711749,2.94,181.87,181.85,3.23]
[1753846711954,2.94,181.86,181.84,117.06]
[1753846712354,2.94,181.86,181.85,3.23]
[1753846712554,5.4987,181.89,181.85,3.23]
[1753846712756,2.94,181.88,181.85,3.23]
[1753846713351,2.94,181.88,181.86,3.23]
[1753846713549,2.94,181.88,181.85,5.4998]
[1753846713749,2.94,181.88,181.87,3.23]
[1753846715262,8.439,181.88,181.87,3.23]
[1753846715856,2.94,181.87,181.85,3.23]
[1753846716461,2.94,181.88,181.86,3.23]
[1753846717160,5.499,181.88,181.84,122.5601]
[1753846717362,2.94,181.87,181.84,122.5601]
[1753846717761,2.94,181.87,181.85,3.23]
[1753846718155,2.94,181.87,181.85,5.4999]
[1753846718354,8.4388,181.89,181.86,3.23]
[1753846718550,2.94,181.88,181.86,3.23]
[1753846718860,8.439,181.88,181.86,3.23]
[1753846719963,2.94,181.96,181.87,3.23]
[1753846720257,2.94,181.94,181.87,3.23]
[1753846720463,8.4374,181.94,181.91,5.498]
[1753846720656,8.4374,181.94,181.92,3.23]
[1753846721157,8.4374,181.94,181.91,5.498]
[1753846721464,8.4374,181.94,181.93,3.23]
[1753846724354,2.94,181.96,181.93,3.23]
[1753846724555,2.94,181.99,181.93,3.23]
[1753846725262,2.94,181.99,181.94,3.23]
[1753846726169,2.94,181.99,181.93,5.4974]
[1753846726466,2.94,181.96,181.94,3.23]
[1753846726664,2.94,181.95,181.94,3.23]
[1753846728763,8.4364,181.97,181.94,3.23]
[1753846728967,2.94,181.96,181.94,3.23]
[1753846730362,8.4366,181.96,181.94,3.23]
[1753846731268,2.94,181.95,181.94,3.23]
[1753846731472,5.4974,181.94,181.86,3.04]
[1753846731770,3.18,181.93,181.86,3.04]
[1753846732271,4.60292955,182.02,181.86,3.04]
[1753846732272,3.18,181.91,181.86,3.04]
[1753846732969,3.18,181.91,181.9,3.04]
[1753846734564,5.4976,181.93,181.9,3.04]
[1753846734769,3.18,181.92,181.9,3.04]
[1753846735070,3.18,181.92,181.9,8.5383]
[1753846735264,3.18,181.92,181.91,3.04]
[1753846736270,3.18,181.93,181.91,3.04]
[1753846737072,5.4972,181.94,181.91,3.04]
[1753846737274,3.18,181.92,181.91,3.04]
[1753846737771,8.6778,181.92,181.91,3.04]
[1753846738275,3.18,181.92,181.91,3.04]
[1753846739370,3.18,181.92,181.89,5.4986]
[1753846739673,3.18,181.91,181.89,3.04]
[1753846740576,3.18,181.91,181.9,3.04]
[1753846741375,8.6781,181.91,181.87,5.4992]
[1753846741567,3.18,181.9,181.85,3.04]
[1753846741769,3.18,181.9,181.86,3.04]
[1753846741973,5.4985,181.9,181.84,117.02]
[1753846742275,3.18,181.88,181.85,3.04]
[1753846743177,3.18,181.88,181.87,3.04]
[1753846743371,5.4982,181.91,181.87,3.04]
[1753846743578,3.18,181.9,181.87,3.04]
[1753846743877,3.18,181.89,181.87,3.04]
[1753846744269,3.18,181.92,181.88,3.04]
[1753846744474,3.18,181.97,181.88,3.04]
[1753846744777,3.18,181.93,181.91,3.04]
[1753846746468,3.18,181.92,181.9,3.04]
[1753846748175,7.78292955,181.99,181.85,3.04]
[1753846748373,3.18,181.97,181.85,3.04]
[1753846748576,3.18,181.95,181.85,3.04]
[1753846748778,3.18,181.93,181.85,3.04]
[1753846749275,3.18,181.9,181.87,5.4991]
[1753846749478,3.18,181.89,181.87,5.4991]
[1753846749980,3.18,181.89,181.88,3.04]
[1753846750881,3.18,181.89,181.86,5.4996]
[1753846751083,3.18,181.89,181.87,3.04]
[1753846751285,5.4987,181.89,181.87,3.04]
[1753846751478,3.18,181.88,181.87,3.04]
[1753846751680,3.18,181.97,181.87,3.04]
[1753846751983,3.18,181.9,181.87,3.04]
[1753846752580,3.18,181.89,181.87,3.04]
[1753846752980,8.6781,181.91,181.88,5.499]
[1753846753182,3.18,181.91,181.89,3.04]
[1753846754779,3.18,181.91,181.89,5.4986]
[1753846755086,3.18,181.91,181.9,3.04]
[1753846755281,3.18,181.92,181.9,3.04]
[1753846757383,3.18,181.99,181.91,3.04]
[1753846757586,3.18,181.97,181.91,3.04]
[1753846757890,3.18,181.94,181.91,3.04]
[1753846758185,3.18,181.93,181.91,3.04]
[1753846758483,3.18,181.92,181.9,5.4981]
[1753846759087,3.18,181.92,181.91,3.04]
[1753846760183,3.18,181.93,181.91,3.04]
[1753846760386,5.4973,181.94,181.91,3.04]
[1753846760387,3.18,181.99,181.92,3.04]
[1753846760587,3.91146533,181.98,181.92,3.04]
[1753846760787,3.18,181.96,181.92,3.04]
[1753846760981,3.18,181.98,181.92,3.04]
[1753846761787,3.01,181.97,181.95,3.2]
[1753846762781,5.4963,181.97,181.94,5.4969]
[1753846762979,3.01,181.96,181.95,3.2]
[1753846764791,8.5066,181.96,181.95,3.2]
[1753846768591,3.01,181.96,181.95,3.2]
[1753846769291,8.5066,181.96,181.95,3.2]
[1753846771788,5.4966,181.96,181.91,5.4979]
[1753846771990,5.4969,181.95,181.92,3.2]
[1753846772190,3.01,181.94,181.86,9.25360043]
[1753846772388,5.4979,181.92,181.9,3.2]
[1753846772694,3.01,181.94,181.86,3.2]
[1753846773087,3.01,181.94,181.92,3.2]
[1753846774584,3.01,181.95,181.93,3.2]
[1753846774786,5.4967,181.96,181.92,5.4976]
[1753846774983,3.01,181.94,181.92,5.4976]
[1753846775187,3.01,181.96,181.93,5.4975]
[1753846775584,3.01,181.96,181.94,3.2]
[1753846775789,3.01,181.95,181.94,3.2]
[1753846777899,5.4969,181.95,181.93,3.2]
[1753846778100,3.01,181.94,181.93,3.2]
[1753846779602,8.5067,181.96,181.94,3.2]
[1753846779802,3.01,181.95,181.93,5.4974]
[1753846780400,5.4967,181.96,181.93,5.4974]
[1753846780601,3.01,181.95,181.94,3.2]
[1753846782197,5.4967,181.96,181.95,3.2]
[1753846782499,8.5067,181.96,181.95,3.2]
[1753846783694,3.01,181.95,181.93,8.6975]
[1753846783901,3.01,181.95,181.93,5.4975]
[1753846784103,5.4967,181.96,181.95,3.2]
[1753846784606,8.5067,181.96,181.95,3.2]
[1753846785504,3.01,181.96,181.95,3.2]
[1753846786100,4.60427356,182.02,181.86,3.2]
[1753846786302,6.92499599,182.01,181.87,3.2]
[1753846786503,3.01,181.99,181.88,3.2]
[1753846787004,3.01,181.97,181.88,3.2]
[1753846787606,5.4961,181.98,181.95,5.4968]
[1753846787803,3.01,181.96,181.95,5.4968]
[1753846788110,3.01,181.98,181.96,5.4965]
[1753846788299,3.01,181.98,181.97,3.2]
[1753846789310,3.01,181.98,181.97,8.6963]
[1753846789813,3.01,181.98,181.97,3.2]
[1753846792702,4.60427356,182.06,181.97,3.2]
[1753846792910,3.07,182.05,181.97,3.2]
[1753846793211,3.07,182.03,181.97,3.2]
[1753846793404,3.07,182.01,181.89,3.12]
[1753846793805,3.07,181.96,181.94,3.12]
[1753846794409,3.07,181.95,181.93,5.4975]
[1753846794605,3.07,181.95,181.87,9.25360043]
[1753846794809,3.07,181.95,181.88,3.12]
[1753846795515,3.07,181.94,181.93,3.12]
[1753846796310,5.4968,181.96,181.93,3.12]
[1753846796813,3.07,181.95,181.93,3.12]
[1753846798515,3.07,181.94,181.93,3.12]
[1753846799714,5.4968,181.96,181.93,3.12]
[1753846799915,3.07,181.95,181.93,3.12]
[1753846800313,3.07,181.95,181.94,3.12]
[1753846800514,3.07,181.95,181.88,12.37360043]
[1753846800715,3.07,182.02,181.94,5.4969]
[1753846800918,5.4958,181.99,181.95,3.12]
[1753846801115,3.07,182.04,181.95,3.12]
[1753846801316,3.07,182.02,181.95,3.12]
[1753846801521,3.07,181.97,181.95,3.12]
[1753846801721,8.5661,181.98,181.95,3.12]
[1753846801920,5.4961,181.98,181.95,5.4968]
[1753846802218,4.60427356,182.05,181.95,5.4968]
[1753846802219,5.4958,181.99,181.95,5.4968]
[1753846802426,3.07,181.98,181.95,5.4968]
[1753846802614,3.07,181.98,181.96,3.12]
[1753846802819,3.07,181.97,181.96,3.12]
[1753846804725,8.5663,181.97,181.94,5.4971]
[1753846804928,3.07,181.96,181.95,3.12]
[1753846805119,3.07,182.03,181.96,3.12]
[1753846805318,8.5659,181.99,181.96,3.12]
[1753846805519,4.60427356,182.05,181.97,5.496]
[1753846805825,5.4953,182.01,181.98,3.12]
[1753846806023,8.5653,182.01,181.98,3.12]
[1753846806424,3.07,182.01,181.99,3.12]
[1753846806723,3.92226638,182.0,181.99,3.12]
[1753846807318,8.5653,182.01,181.99,3.12]
[1753846807617,8.5653,182.01,181.98,5.4958]
[1753846807618,3.07,182.04,181.92,3.12]
[1753846807822,3.07,181.99,181.92,3.12]
[1753846808924,3.07,181.96,181.95,3.12]
[1753846810623,3.07,181.96,181.94,5.497]
[1753846810827,3.07,181.96,181.93,8.6173]
[1753846811025,3.07,181.95,181.94,3.12]
[1753846812821,4.60427356,182.04,181.9,116.92]
[1753846813130,4.60427356,182.04,181.91,3.12]
[1753846813131,3.07,182.02,181.91,3.12]
[1753846813320,3.07,182.0,181.91,3.12]
[1753846813522,3.07,181.93,181.92,3.12]
[1753846814432,8.5675,181.93,181.92,3.12]
[1753846816129,3.07,181.95,181.92,3.12]
[1753846816335,3.07,181.97,181.92,3.12]
[1753846816634,3.07,181.96,181.92,3.12]
[1753846816931,3.07,181.95,181.92,3.12]
[1753846817639,4.60427356,182.03,181.94,3.12]
[1753846817927,3.07,182.02,181.94,3.12]
[1753846818131,3.07,181.96,181.94,8.6169]
[1753846818334,3.07,181.96,181.95,3.12]
[1753846818636,8.5666,181.96,181.95,3.12]
[1753846819134,3.07,181.95,181.94,3.12]
[1753846819537,8.5669,181.95,181.94,3.12]
[1753846821533,3.07,181.95,181.94,3.12]
[1753846822230,5.4967,181.96,181.94,3.12]
[1753846822432,8.5567,181.96,181.94,3.12]
[1753846824631,8.5569,181.95,181.94,3.12]
[1753846826138,3.06,181.95,181.94,3.12]
[1753846826536,3.06,181.95,181.93,5.4974]
[1753846826537,3.06,182.01,181.95,3.16]
[1753846826730,5.4963,181.97,181.95,3.16]
[1753846826936,8.5563,181.97,181.95,3.16]
[1753846828036,3.06,181.96,181.95,3.16]
[1753846831536,3.06,181.96,181.9,116.92]
[1753846831845,3.06,182.01,181.91,3.16]
[1753846832041,3.92946917,182.0,181.91,3.16]
[1753846832240,3.06,181.98,181.91,3.16]
[1753846832442,3.06,181.94,181.93,3.16]
[1753846832936,5.4971,181.95,181.93,3.16]
[1753846833137,8.5571,181.95,181.93,3.16]
[1753846833336,3.06,181.95,181.93,3.16]
[1753846833542,3.06,182.01,181.93,3.16]
[1753846833742,3.06,181.99,181.93,3.16]
[1753846834044,3.06,181.98,181.97,3.16]
[1753846836741,5.4952,182.01,181.97,8.6563]
[1753846836945,6.99067525,182.0,181.98,3.16]
[1753846837142,3.93067525,181.99,181.98,3.16]
[1753846837337,3.06,182.03,181.98,3.16]
[1753846837545,3.06,182.01,181.93,9.25360043]
[1753846837746,3.06,182.01,181.94,3.16]
[1753846837937,3.06,182.01,182.0,8.6554]
[1753846838141,3.06,182.03,182.0,3.16]
[1753846838538,3.06,182.03,182.02,5.4947]
[1753846838746,6.99014823,182.03,182.02,8.6547]
[1753846839342,5.4933,182.07,182.04,5.4941]
[1753846839548,6.98906097,182.06,182.05,3.16]
[1753846839844,6.98906097,182.06,182.05,5.4938]
[1753846840047,3.92906097,182.06,182.05,8.6538]
[1753846840247,5.4927,182.09,182.05,5.4938]